bitfinex-derivatives/quotes_ETHF0:USTF0_20241207
["timestamp","ask_amount","ask_price","bid_price","bid_amount"]
[1733553324077,0.3953,3982.5,3982.2,1.0405]
[1733553324078,0.17551,3982.4,3982.2,1.0405]
[1733553324278,0.3953,3982.5,3982.2,0.3755]
[1733553324474,0.17551,3982.3,3982.2,0.3755]
[1733553331775,1.08158927,3982.3,3982.2,0.3755]
[1733553332683,0.17551,3982.3,3982.2,0.3755]
[1733553332977,3.38331,3982.4,3982.2,0.55102]
[1733553333180,3.38331,3982.4,3982.3,0.3931]
[1733553333479,0.17551,3982.4,3982.3,0.3931]
[1733553334486,0.3957,3982.6,3982.3,0.3931]
[1733553334682,0.17551,3982.5,3982.4,0.389]
[1733553336880,0.17551,3982.5,3982.4,4.31293972]
[1733553338480,0.17551,3982.5,3982.4,0.389]
[1733553339681,0.17551,3982.5,3982.4,4.32817054]
[1733553340189,0.17551,3982.5,3982.4,4.50368054]
[1733553340380,0.17551,3982.5,3982.4,0.56451]
[1733553340582,0.1755,3982.6,3982.5,0.1755]
[1733553340776,0.1755,3982.6,3982.5,3.94029175]
[1733553340983,0.90607927,3982.7,3982.4,4.32929175]
[1733553341188,0.1755,3982.6,3982.5,4.11579175]
[1733553341388,0.1755,3982.6,3982.5,0.1755]
[1733553341692,0.1755,3982.6,3982.4,6.30330057]
[1733553341693,1.08157927,3982.7,3982.6,0.1755]
[1733553341880,0.17549,3983.0,3982.6,5.91430057]
[1733553342186,0.17549,3983.0,3982.9,4.11674295]
[1733553342382,0.3773,3983.1,3982.8,6.08979057]
[1733553342383,0.17549,3982.9,3982.8,6.08979057]
[1733553343278,0.17549,3983.0,3982.9,0.17548]
[1733553343483,0.17549,3983.0,3982.9,5.91650447]
[1733553343786,0.17548,3983.0,3982.9,6.09199447]
[1733553344290,0.17548,3983.0,3982.9,5.91650447]
[1733553347796,0.55278,3983.1,3982.8,0.17549]
[1733553347993,0.55278,3983.1,3983.0,5.9171632]
[1733553348891,0.17548,3983.0,3982.9,5.9171632]
[1733553350284,0.17548,3983.0,3982.8,0.17549]
[1733553350897,0.3773,3983.1,3982.7,8.21813211]
[1733553351194,0.3773,3983.1,3983.0,6.09201017]
[1733553351397,0.55278,3983.1,3983.0,6.09201017]
[1733553351694,0.90607927,3983.5,3983.0,6.09201017]
[1733553351695,6.15700439,3983.7,3983.0,7.82723211]
[1733553351894,3.2078,3983.7,3983.6,0.17546]
[1733553352291,3.2078,3983.7,3983.6,6.08867037]
[1733553352489,0.17545,3983.8,3983.7,0.17545]
[1733553352797,0.17545,3983.8,3983.7,5.91303487]
[1733553353692,0.17545,3983.8,3983.7,6.08848487]
[1733553354397,1.30857927,3984.0,3983.6,5.91303487]
[1733553354698,1.30857927,3984.0,3983.8,3.93992984]
[1733553354892,1.48401927,3984.0,3983.9,0.3757]
[1733553355898,1.08151927,3984.0,3983.9,0.3757]
[1733553356095,1.08151927,3984.0,3983.9,0.7733]
[1733553357593,3.2078,3984.3,3983.9,0.7733]
[1733553357793,3.2078,3984.3,3983.9,5.11822984]
[1733553357794,0.17544,3984.1,3983.9,5.11822984]
[1733553357995,0.17544,3984.1,3984.0,4.11536984]
[1733553358196,0.17544,3984.1,3984.0,3.93992984]
[1733553358798,0.17544,3984.0,3983.9,5.11822984]
[1733553359001,0.17544,3984.0,3983.9,5.29366984]
[1733553359198,0.17544,3984.1,3983.9,5.29366984]
[1733553359701,3.2078,3984.3,3983.9,1.1783]
[1733553360103,3.2078,3984.3,3983.9,1.35374]
[1733553360104,0.17544,3984.1,3983.9,1.35374]
[1733553360298,3.2078,3984.3,3983.9,1.1783]
[1733553360496,0.17544,3984.0,3983.9,0.7733]
[1733553360703,0.17544,3984.0,3983.9,0.3757]
[1733553361297,0.3744,3984.1,3983.6,3.93992984]
[1733553361505,0.17545,3983.7,3983.6,0.3821]
[1733553362094,0.17545,3983.8,3983.6,0.3821]
[1733553362793,0.17545,3983.8,3983.6,0.55755]
[1733553363107,0.55404,3983.9,3983.6,0.55755]
[1733553363606,0.17545,3983.8,3983.6,0.55755]
[1733553363800,0.3786,3983.9,3983.6,0.3821]
[1733553364105,0.3786,3983.9,3983.7,0.17545]
[1733553364106,0.55404,3983.9,3983.7,0.17545]
[1733553364302,0.3786,3983.9,3983.6,0.3821]
[1733553364502,0.17545,3983.8,3983.6,0.55755]
[1733553364702,0.3786,3983.9,3983.6,0.55755]
[1733553364903,0.17545,3983.7,3983.6,1.46362927]
[1733553365501,0.17545,3983.8,3983.6,1.46362927]
[1733553365702,0.17545,3983.7,3983.6,1.46362927]
[1733553366705,0.3744,3984.1,3983.6,1.28817927]
[1733553366903,0.54984,3984.1,3984.0,0.17544]
[1733553367796,0.54984,3984.1,3983.6,5.22810911]
[1733553367797,0.3744,3984.1,3983.6,5.22810911]
[1733553368000,0.3744,3984.1,3983.7,0.17545]
[1733553368001,0.17545,3983.9,3983.7,0.17545]
[1733553368202,0.17544,3983.9,3983.8,0.17545]
[1733553368403,0.17544,3983.9,3983.6,5.22810911]
[1733553368404,0.17544,3984.0,3983.9,0.17544]
[1733553369105,0.54984,3984.1,3983.6,5.22810911]
[1733553369306,3.2078,3984.6,3983.9,0.90607927]
[1733553369605,0.4104,3984.8,3983.9,0.90607927]
[1733553369606,0.58581,3984.8,3984.7,0.17541]
[1733553369804,0.4141,3984.9,3984.7,0.17541]
[1733553369805,0.5895,3984.9,3984.7,0.17541]
[1733553370309,0.4141,3984.9,3984.6,1.1777]
[1733553370503,0.5895,3984.9,3984.6,1.1777]
[1733553370702,0.17539,3985.0,3984.8,1.08147927]
[1733553370904,0.17539,3985.0,3984.9,0.1754]
[1733553371103,0.17539,3985.0,3984.8,0.90607927]
[1733553371303,0.1754,3984.9,3984.8,1.08147927]
[1733553371507,0.1754,3985.0,3984.8,1.08147927]
[1733553371801,0.8245,3985.3,3984.8,0.90607927]
[1733553372007,0.17539,3985.1,3984.9,0.1754]
[1733553372208,0.8245,3985.3,3984.8,0.90607927]
[1733553372406,0.17539,3985.2,3985.0,0.17539]
[1733553372711,0.8245,3985.3,3985.1,0.17539]
[1733553372712,0.17538,3985.3,3985.1,0.17539]
[1733553372902,0.17538,3985.2,3985.1,0.17539]
[1733553373107,0.17538,3985.3,3984.9,0.66]
[1733553373308,0.17538,3985.3,3985.1,0.17539]
[1733553373503,0.17538,3985.3,3985.2,0.17538]
[1733553373807,3.2078,3985.4,3985.2,0.17538]
[1733553375117,0.17538,3985.2,3984.9,0.8354]
[1733553375303,0.17539,3985.1,3984.9,0.66]
[1733553375505,0.17539,3985.2,3985.0,0.17539]
[1733553376406,3.2078,3985.4,3985.3,0.17538]
[1733553377406,3.2078,3985.4,3985.3,0.56588]
[1733553378206,0.17537,3985.7,3985.5,0.17537]
[1733553379011,3.2078,3985.8,3985.4,0.90607927]
[1733553379414,0.17536,3985.7,3985.5,0.17537]
[1733553380008,0.17537,3985.6,3985.5,0.17537]
[1733553380310,3.2078,3985.8,3985.5,0.17537]
[1733553380513,3.2078,3985.8,3985.4,0.90607927]
[1733553380715,0.17537,3985.5,3985.4,0.90607927]
[1733553380911,3.2078,3985.8,3985.4,0.90607927]
[1733553381117,0.17537,3985.6,3985.4,1.08144927]
[1733553381619,0.17537,3985.7,3985.4,1.08144927]
[1733553381916,0.17537,3985.6,3985.4,1.08144927]
[1733553382118,0.17537,3985.6,3985.4,0.90607927]
[1733553382820,0.17537,3985.5,3985.4,0.90607927]
[1733553383616,3.5853,3985.8,3985.1,0.90607927]
[1733553383816,3.5853,3985.8,3985.3,0.661]
[1733553384517,0.17538,3985.4,3985.3,0.661]
[1733553387912,0.17539,3985.0,3984.9,3.2078]
[1733553388111,0.17539,3985.0,3984.9,3.8688]
[1733553389117,0.1754,3984.9,3984.8,0.90607927]
[1733553390016,0.17542,3984.4,3984.1,3.6039]
[1733553390219,0.90607927,3984.9,3984.2,0.90607927]
[1733553390419,0.55902,3984.3,3984.2,0.90607927]
[1733553390821,0.17543,3984.2,3984.1,3.2078]
[1733553391021,0.55123,3984.2,3984.1,3.2078]
[1733553391417,0.3758,3984.2,3984.0,0.4102]
[1733553391718,0.17543,3984.1,3984.0,0.4102]
[1733553393223,0.55123,3984.2,3984.0,0.4102]
[1733553393423,0.17543,3984.1,3984.0,0.4102]
[1733553393622,3.2078,3984.6,3984.0,1.31627927]
[1733553393822,3.38321,3984.6,3984.5,0.90607927]
[1733553394927,0.17543,3984.3,3984.2,0.90607927]
[1733553396927,3.2078,3984.6,3984.0,1.31627927]
[1733553396928,0.17543,3984.1,3984.0,1.31627927]
[1733553397122,3.2078,3984.6,3984.0,1.31627927]
[1733553397123,0.403,3984.2,3984.0,1.31627927]
[1733553397324,0.403,3984.2,3984.0,1.49170927]
[1733553397629,0.17542,3984.4,3984.1,0.17543]
[1733553397924,0.17542,3984.4,3984.3,0.90607927]
[1733553398719,3.2078,3984.6,3984.3,1.08149927]
[1733553399224,3.2078,3985.6,3984.5,3.2078]
[1733553399428,0.1754,3984.9,3984.8,0.90607927]
[1733553399920,0.17539,3985.0,3984.8,1.08147927]
[1733553400123,0.17539,3985.0,3984.8,0.90607927]
[1733553400821,0.17539,3985.1,3984.8,5.01016151]
[1733553401225,0.17539,3985.2,3984.9,0.1754]
[1733553401429,0.17536,3985.7,3985.1,4.83476151]
[1733553401721,3.2078,3986.0,3985.5,1.08144927]
[1733553401722,0.17535,3985.9,3985.5,1.08144927]
[1733553401930,0.17535,3985.9,3985.6,0.17537]
[1733553402725,3.2078,3986.0,3985.5,0.90607927]
[1733553402926,0.17536,3985.9,3985.6,0.17537]
[1733553403229,3.2078,3986.0,3985.5,0.90607927]
[1733553403527,0.17535,3985.9,3985.5,1.08144927]
[1733553403932,0.17535,3985.9,3985.5,0.90607927]
[1733553404128,0.17535,3985.9,3985.6,0.17537]
[1733553404524,3.2078,3986.0,3985.5,0.90607927]
[1733553404831,3.2078,3986.0,3985.7,0.17536]
[1733553405730,3.2078,3986.0,3985.4,4.83476151]
[1733553405930,0.3992,3985.9,3985.4,3.92868224]
[1733553406126,0.17536,3985.8,3985.3,1.28517927]
[1733553406327,0.3992,3985.9,3985.6,0.90607927]
[1733553406523,0.3992,3985.9,3985.6,1.08143927]
[1733553406925,0.90607927,3985.8,3985.1,4.10407224]
[1733553407122,1.29447927,3985.8,3985.1,0.17539]
[1733553407327,0.17537,3985.6,3985.1,0.17539]
[1733553407729,1.29447927,3985.8,3985.0,4.11387927]
[1733553407730,0.17536,3985.7,3985.0,4.11387927]
[1733553407928,0.17536,3985.7,3985.3,0.17538]
[1733553408130,0.17536,3985.7,3985.2,0.17538]
[1733553408332,0.17536,3985.7,3985.3,0.17538]
[1733553409033,0.3884,3985.8,3985.3,0.17538]
[1733553409034,0.56376,3985.8,3985.3,0.17538]
[1733553409537,0.56376,3985.8,3985.4,0.17538]
[1733553409725,0.56376,3985.8,3985.1,3.92868224]
[1733553409932,0.3884,3985.8,3985.1,3.92868224]
[1733553410130,0.3884,3985.8,3985.5,0.17537]
[1733553410330,0.3884,3985.8,3985.4,0.17537]
[1733553410532,0.3884,3985.8,3985.5,0.17537]
[1733553410838,0.3884,3985.8,3985.4,0.17537]
[1733553411336,0.3884,3985.8,3985.1,3.92868224]
[1733553411638,0.3884,3985.8,3985.5,0.17537]
[1733553411832,0.3884,3985.8,3985.2,3.92868224]
[1733553412231,0.3884,3985.8,3985.7,0.17536]
[1733553414932,3.2078,3986.0,3985.9,0.17535]
[1733553415133,0.3901,3986.1,3986.0,0.17535]
[1733553415835,6.14128975,3986.8,3985.9,0.43839]
[1733553416039,6.04918197,3987.2,3986.4,3.93368905]
[1733553416040,0.8008,3986.9,3986.4,3.93368905]
[1733553416236,0.8008,3986.9,3986.8,0.17531]
[1733553416428,0.8008,3986.9,3986.4,3.93368905]
[1733553416636,0.8008,3986.9,3986.8,0.17531]
[1733553416934,0.8008,3986.9,3986.7,0.17532]
[1733553417138,3.2078,3986.8,3986.7,0.17532]
[1733553418034,0.8008,3986.9,3986.8,0.17531]
[1733553419838,3.2078,3987.2,3986.4,6.33459135]
[1733553420039,3.2078,3987.7,3986.9,0.61359]
[1733553420336,3.2078,3987.7,3987.0,0.4027]
[1733553420641,3.2078,3987.7,3987.6,0.17528]
[1733553421032,3.2078,3987.7,3987.5,0.17528]
[1733553421544,3.2078,3987.7,3987.4,0.17529]
[1733553422044,3.2078,3987.7,3987.0,0.4027]
[1733553422239,3.2078,3987.7,3987.4,0.17528]
[1733553422446,3.2078,3987.7,3987.5,0.17528]
[1733553423336,3.2078,3987.7,3987.0,0.4027]
[1733553423544,3.2078,3987.7,3987.5,0.17528]
[1733553423949,3.2078,3987.7,3987.0,0.4027]
[1733553424241,3.2078,3987.7,3987.5,0.17528]
[1733553424445,3.2078,3987.7,3987.0,0.4027]
[1733553424642,3.2078,3987.7,3987.5,0.17528]
[1733553424845,3.2078,3987.7,3987.0,0.4027]
[1733553425040,3.38308,3987.7,3987.3,0.17529]
[1733553425346,3.38308,3987.7,3986.7,0.4032]
[1733553425347,0.1753,3987.2,3986.5,0.17533]
[1733553425641,1.1815,3987.1,3987.0,0.17531]
[1733553426146,1.1815,3987.1,3986.9,0.17531]
[1733553427340,1.1815,3987.1,3986.2,0.4133]
[1733553427547,3.2078,3986.3,3986.2,0.17534]
[1733553428345,0.4036,3986.4,3986.3,0.17534]
[1733553429437,3.2078,3986.7,3986.0,1.9625623]
[1733553429638,0.8363,3987.1,3986.2,0.17534]
[1733553429639,0.8086,3987.0,3986.2,0.17534]
[1733553429840,0.8086,3987.0,3986.7,0.17532]
[1733553430645,0.8086,3987.0,3986.2,0.401]
[1733553430842,0.98391,3987.0,3986.7,0.17532]
[1733553431045,0.8086,3987.0,3986.8,0.17531]
[1733553431240,0.8086,3987.0,3986.2,0.401]
[1733553431543,1.9625623,3987.4,3986.2,0.401]
[1733553431544,3.2078,3987.5,3987.3,0.17529]
[1733553431843,0.97598,3987.7,3987.3,0.17529]
[1733553432241,0.8007,3987.7,3987.3,0.17529]
[1733553432442,0.17528,3987.6,3987.3,0.17529]
[1733553432646,3.2078,3987.5,3987.3,0.17529]
[1733553432844,3.38309,3987.5,3987.1,0.1753]
[1733553433151,0.17529,3987.4,3986.8,1.2016]
[1733553433441,3.13319323,3988.3,3986.8,3.1641623]
[1733553433647,3.2078,3987.9,3987.2,1.9625623]
[1733553433948,3.38307,3987.9,3987.5,0.17528]
[1733553434149,3.38307,3987.9,3987.2,1.9625623]
[1733553434150,3.2078,3987.9,3987.2,1.9625623]
[1733553434343,3.2078,3987.9,3987.7,0.17528]
[1733553434850,3.2078,3987.9,3987.2,1.9625623]
[1733553435156,3.38307,3987.9,3987.2,1.9625623]
[1733553435342,3.38307,3987.9,3987.5,0.17528]
[1733553435543,3.38307,3987.9,3987.6,0.17528]
[1733553436842,3.2078,3987.9,3987.6,0.17528]
[1733553438042,3.2078,3987.9,3987.2,1.9625623]
[1733553438247,3.2078,3987.9,3987.8,0.17527]
[1733553438855,3.2078,3987.9,3987.2,1.9625623]
[1733553439053,3.2078,3987.9,3987.8,0.17527]
[1733553439451,3.2078,3987.9,3987.2,1.9625623]
[1733553439452,3.2078,3987.9,3987.7,0.17527]
[1733553439951,3.2078,3987.9,3987.2,1.9625623]
[1733553440156,3.2078,3987.9,3987.8,0.17527]
[1733553440552,3.2078,3987.9,3987.3,0.17529]
[1733553440851,3.2078,3987.9,3987.7,0.17527]
[1733553441851,3.2078,3987.9,3987.2,1.9625623]
[1733553442060,3.2078,3987.9,3987.8,0.17527]
[1733553442451,3.2078,3987.9,3987.2,1.9625623]
[1733553442452,3.2078,3987.9,3987.7,0.17527]
[1733553442662,3.2078,3987.9,3987.2,1.9625623]
[1733553442955,3.2078,3987.9,3987.7,0.17527]
[1733553443553,3.2078,3987.9,3987.2,1.9625623]
[1733553443554,3.38307,3987.9,3987.6,0.17528]
[1733553443858,3.2078,3987.9,3987.2,1.9625623]
[1733553444048,3.2078,3987.9,3987.0,3.2078]
[1733553444247,3.2078,3988.7,3987.8,0.43819]
[1733553444549,0.17522,3989.0,3988.7,0.17523]
[1733553444754,3.2078,3989.1,3988.7,0.17523]
[1733553444953,3.38302,3989.1,3988.7,0.17523]
[1733553445560,3.2078,3989.1,3988.3,1.9625623]
[1733553445857,3.2078,3989.1,3988.8,1.9625623]
[1733553446060,3.2078,3989.1,3989.0,0.17522]
[1733553446264,0.7754,3989.2,3989.1,0.17521]
[1733553446561,0.7754,3989.2,3988.9,0.3907]
[1733553446562,0.17519,3989.6,3989.2,0.17521]
[1733553446748,0.1752,3989.5,3989.1,0.17521]
[1733553446947,3.383,3989.5,3989.0,0.3959]
[1733553447955,3.2078,3989.5,3989.0,0.3959]
[1733553448155,0.1752,3989.4,3989.0,0.3959]
[1733553448560,0.17521,3989.3,3989.0,0.3959]
[1733553449462,3.2078,3989.5,3989.0,0.3959]
[1733553449663,0.1752,3989.4,3989.0,0.3959]
[1733553449964,0.17521,3989.3,3989.0,0.3959]
[1733553450463,0.1752,3989.4,3989.0,0.3959]
[1733553450651,0.17521,3989.3,3989.0,0.3959]
[1733553452158,3.2078,3989.5,3989.0,0.3959]
[1733553452159,3.2078,3989.5,3989.2,1.9625623]
[1733553452354,3.2078,3989.5,3989.2,2.1377723]
[1733553452558,3.2078,3989.5,3989.3,0.1752]
[1733553452764,0.17521,3989.3,3989.2,1.9625623]
[1733553452961,0.1752,3989.4,3989.2,1.9625623]
[1733553453262,0.17519,3989.6,3989.3,0.17521]
[1733553453566,0.17519,3989.6,3989.2,2.1377723]
[1733553454551,0.1752,3989.5,3989.2,1.9625623]
[1733553454754,0.1752,3989.5,3989.4,1.9625623]
[1733553456560,3.2078,3989.9,3989.4,1.9625623]
[1733553456755,0.17519,3989.6,3989.4,1.9625623]
[1733553456955,3.2078,3989.9,3989.4,1.9625623]
[1733553457152,0.17518,3989.8,3989.5,0.3996]
[1733553457354,0.17519,3989.6,3989.5,0.3996]
[1733553457965,0.17519,3989.7,3989.5,0.3996]
[1733553458161,3.2078,3989.9,3989.5,0.3996]
[1733553458460,0.17519,3989.7,3989.5,0.3996]
[1733553458652,3.2078,3989.9,3989.5,0.3996]
[1733553458858,0.17519,3989.7,3989.5,0.3996]
[1733553459057,0.17519,3989.6,3989.5,0.3996]
[1733553459257,0.17519,3989.7,3989.5,0.3996]
[1733553459456,0.17519,3989.6,3989.5,0.3996]
[1733553459661,3.2078,3989.9,3989.5,0.3996]
[1733553460360,3.2078,3989.9,3989.8,1.9625623]
[1733553460763,3.38298,3989.9,3989.8,1.9625623]
[1733553462055,6.84480943,3992.9,3989.8,1.9625623]
[1733553462056,0.1751,3991.7,3991.2,0.17512]
[1733553462256,3.2078,3992.5,3991.5,3.2078]
[1733553462460,0.1751,3991.8,3991.5,3.2078]
[1733553462664,0.63919845,3992.7,3991.5,3.2078]
[1733553462857,0.63919845,3992.7,3991.5,3.38291]
[1733553463063,0.1751,3991.8,3991.5,3.2078]
[1733553463464,0.17509,3991.9,3991.5,3.2078]
[1733553464760,3.2078,3992.5,3991.8,1.9625623]
[1733553465062,0.17507,3992.3,3991.9,0.676]
[1733553465269,0.17507,3992.3,3992.0,3.2078]
[1733553465767,0.17508,3992.1,3992.0,3.2078]
[1733553465964,0.17508,3992.2,3992.0,5.1703623]
[1733553466169,0.17508,3992.1,3992.0,5.1703623]
[1733553466360,0.17508,3992.2,3992.0,5.1703623]
[1733553466561,0.17508,3992.1,3992.0,5.1703623]
[1733553467369,0.17508,3992.1,3992.0,1.9625623]
[1733553468963,0.1751,3991.7,3991.6,1.9625623]
[1733553469163,0.3902,3992.0,3991.3,2.6385623]
[1733553469366,0.17511,3991.4,3991.3,2.6385623]
[1733553470573,0.17511,3991.4,3991.3,1.9625623]
[1733553474174,0.3819,3991.6,3991.2,0.676]
[1733553474473,0.3819,3991.6,3991.1,3.2078]
[1733553474675,0.17512,3991.2,3991.1,3.2078]
[1733553478281,0.17512,3991.3,3991.1,3.2078]
[1733553478473,0.17512,3991.2,3991.1,3.2078]
[1733553485283,0.17512,3991.2,3990.4,2.6385623]
[1733553485284,3.2078,3991.2,3990.4,2.6385623]
[1733553485481,0.17515,3990.5,3990.4,2.6385623]
[1733553487185,0.17515,3990.5,3990.4,1.9625623]
[1733553487391,0.17515,3990.5,3990.1,4.0008]
[1733553487392,0.81505,3990.9,3990.1,3.613]
[1733553487702,0.17514,3990.8,3990.1,3.613]
[1733553487882,0.17517,3990.2,3990.1,3.613]
[1733553488084,0.3772,3990.9,3990.1,3.613]
[1733553488085,0.17516,3990.3,3990.1,3.613]
[1733553488285,0.17517,3990.2,3990.1,3.613]
[1733553488484,0.17516,3990.3,3990.1,3.613]
[1733553489089,0.3772,3990.9,3990.1,4.289]
[1733553489794,0.17515,3990.5,3990.1,4.46417]
[1733553489992,0.3772,3990.9,3990.1,4.46417]
[1733553490189,0.3772,3990.9,3990.1,4.289]
[1733553490488,0.3772,3990.9,3990.4,1.9625623]
[1733553490796,0.01026756,3990.5,3990.4,1.9625623]
[1733553491485,0.18541756,3990.5,3990.4,1.9625623]
[1733553493694,0.18541756,3990.5,3990.1,4.46417]
[1733553493988,0.18541756,3990.5,3990.1,4.289]
[1733553493989,0.01026756,3990.5,3990.1,4.289]
[1733553494192,0.01026756,3990.5,3990.2,0.17516]
[1733553494387,0.01026756,3990.5,3990.1,4.289]
[1733553494586,0.18542756,3990.5,3990.1,4.289]
[1733553494786,0.18542756,3990.5,3990.1,4.46417]
[1733553494990,0.18542756,3990.5,3990.2,0.17516]
[1733553495687,0.18541756,3990.5,3990.2,0.17516]
[1733553495891,0.17516,3990.4,3990.1,4.46417]
[1733553496193,0.18541756,3990.5,3990.2,0.17516]
[1733553496892,0.18541756,3990.5,3990.2,0.17517]
[1733553496893,0.18542756,3990.5,3990.2,0.17517]
[1733553497396,0.01026756,3990.5,3990.1,4.289]
[1733553497589,0.18542756,3990.5,3990.2,0.17517]
[1733553497893,0.18542756,3990.5,3990.3,0.673]
[1733553497894,0.17516,3990.4,3990.3,0.673]
[1733553498092,0.18541756,3990.5,3990.3,0.673]
[1733553498288,0.01026756,3990.5,3990.3,0.673]
[1733553498698,0.18542756,3990.5,3990.3,0.673]
[1733553499587,0.01026756,3990.5,3990.3,0.84816]
[1733553500187,0.01026756,3990.5,3990.3,0.673]
[1733553500591,0.18542756,3990.5,3990.3,0.673]
[1733553500895,0.01026756,3990.5,3990.3,0.84816]
[1733553501089,0.18541756,3990.5,3990.3,0.84816]
[1733553501296,0.18541756,3990.5,3990.3,0.673]
[1733553502386,0.18541756,3990.5,3990.3,4.58138927]
[1733553502593,0.01026756,3990.5,3990.3,4.58138927]
[1733553502793,0.01026756,3990.5,3990.3,4.75654927]
[1733553503195,0.01026756,3990.5,3990.4,3.90838927]
[1733553503591,0.18541756,3990.5,3990.3,4.58138927]
[1733553503894,0.18541756,3990.5,3990.4,3.90838927]
[1733553504090,0.17516,3990.4,3990.3,4.58138927]
[1733553504295,0.01026756,3990.5,3990.3,0.673]
[1733553504492,0.18542756,3990.5,3990.4,3.92640776]
[1733553505297,0.18542756,3990.5,3990.3,4.59940776]
[1733553505592,0.01026756,3990.5,3990.1,7.13420776]
[1733553505793,0.17517,3990.2,3990.1,3.2078]
[1733553506587,0.7717,3990.4,3990.1,3.2078]
[1733553506794,0.17516,3990.3,3990.2,3.9284282]
[1733553507688,0.7717,3990.4,3990.1,3.2078]
[1733553507889,0.94686,3990.4,3990.3,3.92826209]
[1733553509793,0.7717,3990.4,3990.3,3.92826209]
[1733553509992,0.94685,3990.4,3990.3,3.92826209]
[1733553512295,0.17515,3990.3,3990.2,5.87839869]
[1733553512897,0.7717,3990.4,3990.1,3.8808]
[1733553512898,0.94685,3990.4,3990.1,3.8808]
[1733553513097,0.7717,3990.4,3990.2,5.89551137]
[1733553513296,0.17515,3990.3,3990.1,3.8808]
[1733553513495,0.17515,3990.2,3990.1,3.8808]
[1733553516193,0.7717,3990.4,3990.1,3.8808]
[1733553516394,0.7717,3990.4,3990.1,11.71866492]
[1733553516800,0.7717,3990.4,3990.1,11.89382492]
[1733553517101,0.7717,3990.4,3990.1,11.71866492]
[1733553517302,0.7717,3990.4,3990.3,0.90359022]
[1733553517595,0.7717,3990.4,3990.3,8.74145514]
[1733553519003,0.01026756,3990.5,3990.3,0.90359022]
[1733553519194,0.01026756,3990.5,3990.4,8.24966963]
[1733553519400,0.01026756,3990.5,3990.4,0.387]
[1733553520105,0.18540756,3990.5,3990.4,0.387]
[1733553520800,0.01026756,3990.5,3990.4,0.387]
[1733553522506,0.18540756,3990.5,3990.4,0.387]
[1733553523099,0.01026756,3990.5,3990.4,0.387]
[1733553523304,0.01026756,3990.5,3990.4,0.56215]
[1733553525107,0.3772,3990.9,3990.4,0.387]
[1733553525308,0.3772,3990.9,3990.8,11.24954744]
[1733553525609,0.3772,3990.9,3990.8,3.38293]
[1733553525910,0.8018,3991.3,3990.8,3.2078]
[1733553526103,0.8018,3991.3,3991.2,3.38291]
[1733553526412,0.1751,3991.4,3991.3,0.17511]
[1733553526812,0.1751,3991.4,3991.3,6.07238863]
[1733553527110,0.5494,3991.5,3991.4,0.1751]
[1733553527313,0.5494,3991.5,3991.4,6.07099598]
[1733553527619,0.5494,3991.5,3991.4,0.1751]
[1733553527912,0.3743,3991.5,3991.4,8.03991477]
[1733553528301,0.3743,3991.5,3991.3,0.90359022]
[1733553528302,0.8018,3991.8,3991.7,0.17509]
[1733553529412,0.97689,3991.8,3991.6,11.24232619]
[1733553529604,0.8018,3991.8,3991.7,0.17509]
[1733553530204,0.8018,3991.8,3991.7,6.06688855]
[1733553530908,0.17506,3992.5,3992.1,0.17507]
[1733553531111,6.14128975,3992.8,3992.0,6.96904679]
[1733553531112,0.7748,3992.2,3992.0,6.96904679]
[1733553531313,0.7748,3992.2,3992.1,3.2078]
[1733553532110,0.94987,3992.2,3992.1,7.13117204]
[1733553532411,0.7748,3992.2,3992.1,7.13117204]
[1733553533016,0.7748,3992.2,3992.1,3.2078]
[1733553533221,0.7748,3992.2,3992.1,7.12951214]
[1733553533921,0.7748,3992.2,3992.1,3.2078]
[1733553535621,0.94987,3992.2,3992.1,3.2078]
[1733553536019,0.7748,3992.2,3992.1,3.2078]
[1733553537218,0.94987,3992.2,3992.1,3.2078]
[1733553537425,0.7748,3992.2,3992.1,3.2078]
[1733553538517,2.93348975,3993.2,3992.1,3.2078]
[1733553538820,0.17505,3992.7,3992.5,4.11139022]
[1733553539024,0.17505,3992.6,3992.5,4.11139022]
[1733553539321,0.17505,3992.6,3992.5,3.2078]
[1733553539628,0.17507,3992.2,3992.1,3.2078]
[1733553540126,1.30169022,3992.5,3991.9,0.666]
[1733553540327,0.17508,3992.0,3991.9,0.666]
[1733553541021,0.3957,3992.1,3991.7,4.77739022]
[1733553541223,0.57318,3991.9,3991.7,4.77739022]
[1733553541418,0.3981,3991.9,3991.7,4.77739022]
[1733553541623,0.17509,3991.8,3991.7,4.77739022]
[1733553542025,0.57319,3991.9,3991.7,4.77739022]
[1733553542726,0.17509,3991.8,3991.7,4.77739022]
[1733553542926,0.3981,3991.9,3991.7,4.77739022]
[1733553543127,0.3981,3991.9,3991.7,8.69910236]
[1733553543433,0.57318,3991.9,3991.7,8.69910236]
[1733553544234,0.3981,3991.9,3991.7,8.87419236]
[1733553544426,0.3981,3991.9,3991.7,8.69910236]
[1733553544730,0.3981,3991.9,3991.7,8.87419236]
[1733553545430,0.57318,3991.9,3991.8,0.666]
[1733553548033,0.3957,3992.1,3991.8,0.666]
[1733553548335,0.3957,3992.1,3992.0,0.90359022]
[1733553548336,0.57077,3992.1,3992.0,0.90359022]
[1733553550443,3.2078,3993.3,3992.0,1.80718044]
[1733553550630,3.2078,3993.3,3992.9,0.90359022]
[1733553550631,0.17503,3993.0,3992.9,0.90359022]
[1733553551436,1.1655,3993.1,3992.9,0.90359022]
[1733553551633,0.17503,3993.0,3992.9,0.90359022]
[1733553551828,1.1655,3993.1,3992.9,0.90359022]
[1733553552140,1.34053,3993.1,3992.9,0.90359022]
[1733553552639,0.17503,3993.0,3992.9,0.90359022]
[1733553555639,0.17502,3993.4,3993.1,0.17503]
[1733553555838,0.17502,3993.4,3993.3,0.90359022]
[1733553557238,1.34071,3993.5,3993.3,0.90359022]